Cogmind - Beta 10.1 @@@ ROGUE MODE // 2020.09.27 @ 20:39:02 Player: GMCrimson Result: Destroyed by G-47 Trooper with Particle Gun Performance ------------- Evolutions (0) 0 Regions Visited (4) 800 Robots Destroyed (32) 160 Value Destroyed (645) 645 Prototype IDs (23) 460 Alien Tech Used (0) 0 Bonus (300) 300 TOTAL SCORE: 2365 Bonus ------- Aligned with FarCom 300 Cogmind --------- Core Integrity 0/250 Matter 268/300 Energy 125/125 System Corruption 0% Temperature Cool (81) Movement Rolling (110) Ox1 Location -9/Mines Parts ------- > --- POWER (1) -------- Light Ion Engine > --- PROPULSION (2) --- Compact Wheel Compact Wheel > --- UTILITY (2) ------ Large Storage Unit Large Storage Unit > --- WEAPON (2) ------- Light Cannon Light Cannon > --- INVENTORY (16) --- Light Nuclear Core Light Nuclear Core Sensor Array Experimental Sensor Array ECM Suite EM Shotgun Small Laser Beam Rifle AWS/Thermal Shotgun Rocket Launcher Rocket Launcher Peak State ------------ > --- POWER ------------ Light Ion Engine > --- PROPULSION ------- Compact Wheel Compact Wheel > --- UTILITY ---------- Large Storage Unit Large Storage Unit > --- WEAPON ----------- AWS/Thermal > --- INVENTORY -------- Light Ion Engine Light Nuclear Core Light Nuclear Core Compact Wheel Compact Wheel Sensor Array Experimental Sensor Array ECM Suite Small Laser Light Cannon Light Cannon Grenade Launcher [Rating: 23] Favorites ----------- Power Light Ion Engine Engine Light Ion Engine Propulsion Compact Wheel Leg Aluminum Leg Wheel Compact Wheel Utility Large Storage Unit Storage Large Storage Unit Weapon Light Assault Rifle Energy Gun AWS/Thermal Ballistic Gun Light Assault Rifle Ballistic Cannon Light Cannon Build | -11 -10 -10 -10 -9 ------- Run | Scr Mat Min Exi Min Slots Evolved . | . . . . . Power . | . . . . . Propulsion . | . . . . . Utility . | . . . . . Weapon . | . . . . . Parts Attached 21 | 6 8 . 1 6 Power 3 | 1 . . . 2 Engine 3 | 1 . . . 2 Core . | . . . . . Reactor . | . . . . . Propulsion 7 | 2 3 . . 2 Treads . | . . . . . Leg 1 | . 1 . . . Wheel 6 | 2 2 . . 2 Hover . | . . . . . Flight . | . . . . . Utility 3 | 1 2 . . . Device . | . . . . . Storage 3 | 1 2 . . . Processor . | . . . . . Hackware . | . . . . . Protection . | . . . . . Artifact . | . . . . . Weapon 8 | 2 3 . 1 2 Energy Gun 3 | . 2 . 1 . Energy Cannon . | . . . . . Ballistic Gun 3 | 2 1 . . . Ballistic Cannon 2 | . . . . 2 Launcher . | . . . . . Special Weapon . | . . . . . Impact Weapon . | . . . . . Slashing Weapon . | . . . . . Piercing Weapon . | . . . . . Special Melee Weapon . | . . . . . Unidentified Prototypes . | . . . . . Parts Lost 9 | . 5 . . 4 Power 2 | . . . . 2 Propulsion 4 | . 2 . . 2 Utility . | . . . . . Weapon 3 | . 3 . . . Highest Loss Streak 3 | . 3 . . 2 Average Slot Usage (%) 96 | . 99 100 91 95 Engine 13 | . 14 14 14 13 Leg 3 | . 8 . . . Wheel 24 | . 19 28 28 28 Storage 27 | . 27 28 28 28 Energy Gun 6 | . 4 14 13 4 Ballistic Gun 11 | . 23 14 6 . Ballistic Cannon 7 | . . . . 19 Naked Turns . | . . . . . Heaviest Build 43 | 9 39 38 43 43 Greatest Support 32 | 20 32 32 32 32 Greatest Overweight (x) 3 | . 3 1 1 1 Average Overweight (x) 1 | . 2 1 1 1 Largest Inventory Capacity 16 | 6 16 16 16 16 Average Capacity 15 | 5 15 16 16 16 Most Carried 14 | 4 14 12 14 13 Average Carried 10 | 2 8 11 12 12 Final Capacity 16 | 6 16 16 16 16 Final Carried 13 | 4 11 12 12 13 Class Distribution -------------------- 100% | Mutant Dominant Class ---------------- Mutant | -10/Materials Mutant | -10/Mines Mutant | -10/Exiles Mutant | -9/Mines Resources | -11 -10 -10 -10 -9 ----------- Run | Scr Mat Min Exi Min Matter Collected 614 | 257 174 . . 183 Remotely . | . . . . . Salvage Created 989 | . 710 . . 279 Parts 53 | . 45 . . 8 Haulers Intercepted 1 | . 1 . . . Recyclers Shooed 1 | . 1 . . . Parts Field Recycled . | . . . . . Retrieved Matter . | . . . . . Parts Self-Destructed . | . . . . . Prevented . | . . . . . Kills | -11 -10 -10 -10 -9 ------- Run | Scr Mat Min Exi Min Combat Hostiles Destroyed 28 | . 12 . . 16 Guns 23 | . 12 . . 11 Cannons 5 | . . . . 5 Classes Destroyed 6 | . 4 . . 2 Hauler 1 | . 1 . . . Recycler 2 | . 2 . . . Operator 1 | . 1 . . . Grunt 14 | . 12 . . 2 Sentry 2 | . . . . 2 Assembled 12 | . . . . 12 Best Kill Streak 6 | . 5 . . 6 Combat Bots Only 6 | . 4 . . 6 Max Kills in Single Turn 1 | . 1 . . 1 Gunslinging . | . . . . . Exploded . | . . . . . Melee . | . . . . . Uniques/NPCs Destroyed . | . . . . . Combat | -11 -10 -10 -10 -9 -------- Run | Scr Mat Min Exi Min Damage Taken 1269 | . 579 . . 690 Core 260 | . 108 . . 152 Absorbed by Shields . | . . . . . Core Remaining (%) 100 | 100 . . . . Volleys Fired 86 | . 66 . . 20 Largest 2 | . 2 . . 2 Hottest 85 | . 85 . . 70 Shots Fired 197 | . 132 . . 65 Gun 157 | . 132 . . 25 Cannon 40 | . . . . 40 Launcher . | . . . . . Special . | . . . . . Kinetic 148 | . 108 . . 40 Thermal 36 | . 11 . . 25 Explosive . | . . . . . Electromagnetic 13 | . 13 . . . Robot Hit Streak 10 | . 10 . . 6 Robot Miss Streak 4 | . 4 . . 4 Penetration Max . | . . . . . Secondary Targets 1 | . 1 . . . Max Gunslinging Chain 1 | . 1 . . . Autonomous 26 | . . . . 26 Shots Hit Robots 134 | . 92 . . 42 Core Hits 57 | . 37 . . 20 Critical Hits . | . . . . . Critical Kills . | . . . . . Critical Parts Destroyed . | . . . . . Melee Attacks . | . . . . . Impact . | . . . . . Slashing . | . . . . . Piercing . | . . . . . Sneak Attacks . | . . . . . Combat Hostiles . | . . . . . Follow-up Attacks . | . . . . . Damage Inflicted 1760 | . 814 . . 946 Guns 1326 | . 814 . . 512 Cannons 434 | . . . . 434 Explosions . | . . . . . Melee . | . . . . . Ramming . | . . . . . Kinetic 1001 | . 567 . . 434 Thermal 640 | . 128 . . 512 Explosive . | . . . . . Electromagnetic 119 | . 119 . . . Impact . | . . . . . Slashing . | . . . . . Piercing . | . . . . . Highest Corruption . | . . . . . Average Corruption . | . . . . . Corruption Purged . | . . . . . Overload Shots . | . . . . . Overflow Damage 6 | . . . . 6 Projectiles 6 | . . . . 6 Explosions . | . . . . . Melee . | . . . . . Knockbacks 3 | . . . . 3 Impact . | . . . . . Kinetic 3 | . . . . 3 Secondary . | . . . . . Self-Inflicted Damage . | . . . . . Shots . | . . . . . Rammed . | . . . . . Targets Rammed . | . . . . . Kicked . | . . . . . Crushed . | . . . . . Highest Temperature 171 | . 144 . . 171 Average Temperature 55 | . 47 . . 67 Received Heat Transfer 498 | . 330 . . 168 Siege Activations . | . . . . . Robots Corrupted . | . . . . . Combat Hostiles . | . . . . . Parts Fried . | . . . . . Impact Corruptions . | . . . . . Robots Melted . | . . . . . Combat Hostiles . | . . . . . Parts Melted . | . . . . . Heat Transferred 999 | . 333 . . 666 Parts Sabotaged . | . . . . . Parts Stolen . | . . . . . Parts Stripped . | . . . . . Power Chain Reactions . | . . . . . Missiles Intercepted . | . . . . . Alert | -11 -10 -10 -10 -9 ------- Run | Scr Mat Min Exi Min Peak Influence 202 | . 202 45 . 70 Initial 45 | . . 45 . . Average 46 | . 78 45 . 15 Maximum Alert Level 1 | . 1 . . . Low Security (%) 99 | 100 99 100 . 100 Level 1 . | . . . . . Level 2 . | . . . . . Level 3 . | . . . . . Level 4 . | . . . . . Level 5 . | . . . . . High Security . | . . . . . Max Security . | . . . . . Squads Dispatched 4 | . 4 . . . Investigation 1 | . 1 . . . Extermination . | . . . . . Reinforcement 3 | . 3 . . . Assault . | . . . . . Garrison . | . . . . . Intercept . | . . . . . Construction Impeded . | . . . . . Haulers Reinforced . | . . . . . Stealth | -11 -10 -10 -10 -9 --------- Run | Scr Mat Min Exi Min Distress Signals 1 | . 1 . . . Communications Jammed . | . . . . . Distress Signals . | . . . . . Times Spotted 50 | . 26 . . 24 Peak Tracking Total 9 | . 7 . . 9 Tactical Retreats 4 | . . . . 4 Traps | -11 -10 -10 -10 -9 ------- Run | Scr Mat Min Exi Min Traps Triggered . | . . . . . Indirectly . | . . . . . Trap Hack Attempts . | . . . . . Triggered . | . . . . . Disarmed . | . . . . . Reprogrammed . | . . . . . Reused . | . . . . . Traps Extracted . | . . . . . Installed . | . . . . . Triggered . | . . . . . Exploded 1 | . . . 1 . Machines | -11 -10 -10 -10 -9 ---------- Run | Scr Mat Min Exi Min Machines Disabled 1 | . 1 . . . Max in Single Turn 1 | . 1 . . . Machines Sabotaged . | . . . . . Garrisons Compromised . | . . . . . Overloaded Fab Kills . | . . . . . Fab Network Shutdowns . | . . . . . Hacking | -11 -10 -10 -10 -9 --------- Run | Scr Mat Min Exi Min Machines Accessed 6 | . 4 . 2 . Terminals 3 | . 3 . . . Fabricators . | . . . . . Repair Stations . | . . . . . Recycling Units 1 | . 1 . . . Scanalyzers . | . . . . . Garrison Access . | . . . . . Total Hacks 33 | . 9 . 24 . Successful 28 | . 4 . 24 . Failed 5 | . 5 . . . Catastrophic 1 | . 1 . . . Database Lockouts . | . . . . . Manual 3 | . 2 . 1 . Terminals 7 | . 7 . . . Fabricators . | . . . . . Repair Stations . | . . . . . Recycling Units 2 | . 2 . . . Scanalyzers . | . . . . . Garrison Access . | . . . . . Terminal Hacks 28 | . 4 . 24 . Record 24 | . 1 . 23 . Robot Analysis 1 | . 1 . . . Branch Access Points 1 | . 1 . . . Zone Layout 1 | . 1 . . . EX-Prototype ID Bank 1 | . . . 1 . Fabricator Hacks . | . . . . . Repair Station Hacks . | . . . . . Recycling Unit Hacks . | . . . . . Scanalyzer . | . . . . . Garrison Access Hacks . | . . . . . Unauthorized Hacks . | . . . . . Terminals . | . . . . . Fabricators . | . . . . . Repair Stations . | . . . . . Recycling Units . | . . . . . Scanalyzers . | . . . . . Garrison Access . | . . . . . Data Cores Recovered . | . . . . . Used . | . . . . . Hacking Detections 3 | . 3 . . . Full Trace Events 1 | . 1 . . . Feedback Events . | . . . . . Feedback Blocked . | . . . . . Robot Schematics Acquired . | . . . . . Robots Built . | . . . . . Matter . | . . . . . Time . | . . . . . Total Robot Build Rating . | . . . . . Part Schematics Acquired . | . . . . . Parts Built . | . . . . . Matter . | . . . . . Time . | . . . . . Total Part Build Rating . | . . . . . Parts Repaired . | . . . . . Time . | . . . . . Parts Recycled . | . . . . . Recycled Matter . | . . . . . Retrieved Matter . | . . . . . Retrieved Components . | . . . . . Parts Scanalyzed . | . . . . . Part Schematics Acquired . | . . . . . Parts Damaged . | . . . . . Bothacking | -11 -10 -10 -10 -9 ------------ Run | Scr Mat Min Exi Min Used RIF Installer . | . . . . . Robots Hacked . | . . . . . Non-combat . | . . . . . Combat . | . . . . . Robot Hacks Applied . | . . . . . Relay Couplers Released . | . . . . . Robots Rewired . | . . . . . Allies Hacked . | . . . . . Hacks Repelled . | . . . . . Allies | -11 -10 -10 -10 -9 -------- Run | Scr Mat Min Exi Min Total Allies . | . . . . . Largest Group . | . . . . . Highest-Rated Group . | . . . . . Highest-Rated Ally . | . . . . . Total Orders . | . . . . . Ally Attacks . | . . . . . Total Damage . | . . . . . Kills . | . . . . . Allies Corrupted . | . . . . . Allies Melted . | . . . . . Intel | -11 -10 -10 -10 -9 ------- Run | Scr Mat Min Exi Min Robot Analysis Total 1 | . 1 . . . Derelict Logs Recovered 1 | . . . . 1 Drone Launches . | . . . . . Drone Recoveries . | . . . . . Exploration | -11 -10 -10 -10 -9 ------------- Run | Scr Mat Min Exi Min Turns Passed 2078 | 48 849 126 267 788 Spaces Moved 1503 | 42 474 114 230 643 Core 4 | 4 . . . . Treads . | . . . . . Legs . | . . . . . Wheels 1499 | 38 474 114 230 643 Hover . | . . . . . Flight . | . . . . . Fastest Speed 50 | 50 80 110 110 110 Average Speed 107 | 77 105 110 110 110 Slowest Speed 120 | 80 120 110 110 110 Overloaded Moves . | . . . . . Propulsion Burnouts . | . . . . . Robots Hopped . | . . . . . Cave-ins Triggered . | . . . . . Exploration Rate (%) 50 | 4 71 25 60 90 Regions Visited 4 Branch Regions 3 Pre-discovered Areas 2 | . . . 1 1 Known Exits Taken 1 | . 1 . . . Unknown Exits Taken 3 | 1 . 1 1 . Scrap Searched 1 | . . . . 1 Spaces Dug . | . . . . . Terrain Destroyed 5 | . . . . 5 Melee . | . . . . . Projectile 5 | . . . . 5 AOE . | . . . . . Terrain Rammed . | . . . . . Walls Destroyed . | . . . . . Machines Disabled . | . . . . . Actions | -11 -10 -10 -10 -9 --------- Run | Scr Mat Min Exi Min Total 1815 | 57 715 114 245 684 Wait 162 | . 144 . 12 6 Move 1499 | 41 473 113 229 643 Hop . | . . . . . Pick Up 37 | 10 18 1 1 7 Fast Attach 1 | . 1 . . . Attach 18 | 6 5 . 1 6 Detach . | . . . . . Swap 2 | . 2 . . . Drop 10 | . 6 . 2 2 Fire 86 | . 66 . . 20 Melee . | . . . . . Ram . | . . . . . Kick . | . . . . . Crush . | . . . . . Escape Stasis . | . . . . . Rewire . | . . . . . Trap . | . . . . . Miscellaneous . | . . . . . Route ------- -11/Scrapyard -10/Materials (discovered 3 exits: [*Mat] / *Min x2) -10/Mines -10/Exiles -9/Mines History --------- Turn | Location | Event 14 | -11/Scrapyard | Discovered new exit (range 16) 49 | -11/Scrapyard | Entered Materials 56 | -10/Materials | Discovered new exit (range 15) 255 | -10/Materials | Discovered new exit (range 15) 301 | -10/Materials | Build established: Mutant 745 | -10/Materials | Identified exit to Mines 856 | -10/Materials | Lost 3 parts (1n2w) 898 | -10/Materials | Entered Mines 906 | -10/Mines | Met a Derelict bent on vengeance 923 | -10/Mines | Found a damaged Exp. Sensor Array with a note attached 925 | -10/Mines | Found Prototype Device 1019 | -10/Mines | Deemed a non-threat by the Exiles lab entrance 1019 | -10/Mines | Discovered new exit (range 5) 1024 | -10/Mines | Entered Exiles 1051 | -10/Exiles | Met 8R-AWN 1070 | -10/Exiles | Met EX-HEX 1106 | -10/Exiles | Met EX-BIN 1122 | -10/Exiles | Aligned with FarCom system 1123 | -10/Exiles | Given EX-Vault access code 1152 | -10/Exiles | Opened EX-Vault 1161 | -10/Exiles | Found AWS/Thermal 1184 | -10/Exiles | Warned to stay clear of 0b10 Research branches 1200 | -10/Exiles | Exiles lab attacked by MAIN.C 1225 | -10/Exiles | Learned location of Zion (-7) 1269 | -10/Exiles | Discovered new exit (range 10) 1291 | -10/Exiles | Left Exiles lab with AWS/Thermal 1291 | -10/Exiles | Entered Mines 1300 | -9/Mines | Assembled infested the area 1356 | -9/Mines | Core integrity fell below 50% 1434 | -9/Mines | Received a Rocket Launcher from a helpful Derelict 1967 | -9/Mines | Core integrity fell below 20% 2079 | -9/Mines | Destroyed by G-47 Trooper with Particle Gun Last Messages --------------- Lgt. Ion Engine destroyed. Y-45 Defender destroyed. Com. Wheel destroyed. Y-45 Defender destroyed. Acquired Beam Rifle. Acquired EM Shotgun. Dropped Grenade Launcher. Acquired Rocket Launcher. Acquired 13 matter. U-05 Engineer lays Concrete. Acquired 19 matter. U-05 Engineer lays Concrete. Acquired 2 matter. U-05 Engineer builds a Wall. K-01 Serf collects debris. U-05 Engineer builds a Wall. C-30 ARC bursts open, deploying its payload. G-47 Trooper unfolds itself. G-34 Mercenary unfolds itself. G-34 Mercenary destroyed. Map ----- +----------------------------------------------------+ | #####++###????????????## ##????## #?? | | #?# ##????????#### ##?????# #?? | | ### ##?????### %! ##?????## ##?? | | ### #????## * * #??????# ##??? | | ! #???## % % ##??????# ##???? | | ### %! ###### =##???????# ##????? | | #?##= ##!! #????????### ###?????? | | ##?# | ##=## ############ #???????? | | ##?## !%= ##%##= #???????? | | !#####* ===#=##% #???????? | | *!%=*=%! * =!!%!* ## ######=#####???????? | | |=!%!!|*= %==%!%=! #### ##????#!#???????????? | | %%!#####% ##=#### ##??## ##?????#%#???????????? | | =*%=#??#######=#### #????####??????#%####????????? | | %!*!#????????#% %#??????????????# #????????? | | !=%#"#???????###### #??????????????#### #????????? | | !!##??????????????#%#??????####??????## #####????? | | ###???????????????# #?????## ##????## ####?? | | #?????????????????#%####### ##???# ##? | | #?????????????????# ! ##??# #? | | #?????????????###########g# ##?## """ ## | | ############### ##?????#=## #??## """ # | | #####?# #?#% ##### """ | | ############## ## ### #??# ### | | ???????????# ## ####g ##?## | | ???????????# !!! ##@ ##########???# | | ???????????# ! ! ## ####### %%##????????????## | | ???????????# ! ! #####?????# ?????????????## | | ???????????# !!! #?????????# % ##?????????????? | | ???????????# #?????????# #??????????????? | | ???????????########?????????## ##??????????????? | | ?????????????????????????????#####???????????????? | | ?????????????????????????????????????????????????? | | ?????????????????????????????????????????????????? | | ?????????????????????????????????????????????????? | | ?????????????????????????????????????????????????? | | ?????????????????????????????????????????????????? | | ?????????????????????????????????????????????????? | | ?????????????????????????????????????????????????? | | | | | | | | | | | | | | | | | | | | | | | +----------------------------------------------------+ Best States ------------- Heat Dissipation 25 Energy Generation 10 Energy Capacity 125 Matter Stores 300 Matter Capacity 300 Sight Range 16 Terrain Scan Density 10 Evasion (%) 44 Item Schematics ----------------- None Robot Schematics ------------------ None Fabricated ------------ Nothing Alien Tech Used ----------------- None Achievements -------------- None Challenges ------------ None Game ------ Seed HardlightMakeshiftMallet Manual? 0 Play Time 00:23:49 Cumulative 33.0 hours Start 2020.09.27 @ 20:15:45 End 2020.09.27 @ 20:39:02 Sessions 1 Manual Loads 0 Difficulty Rogue Special Mode None Game No. 29 Rogue 29 Adventurer 0 Explorer 0 Win Type - Total 1 Types 1/0/0/0/0/0/0/0/0 Lore% 34 Gallery% 40 Achievement% 37 Wizard Run 0 Options --------- ASCII 0 Keyboard 0 Movement Numpad Keybinds 0 Fullscreen 1 Font 18/SmallcapsGlow Map View 76x50 Tactical HUD 0 Map Filters NONE Filters NONE Steam 1 RUN: 09294d88-f5a1-496d-b009-663e0338b0d7